[Event "*** Titled Tuesday Blitz"]
[Site "Chess.com"]
[Date "2020.11.10"]
[Round "10"]
[White "Morshynska"]
[Black "MariaFominykh"]
[Result "1/2-1/2"]
[WhiteElo "2248"]
[BlackElo "2347"]
[TimeControl "180+1"]
[EndTime "12:03:26 PST"]
[Termination "Game drawn by repetition"]

1. Nf3 {[%clk 0:03:00.9]} 1... g6 {[%clk 0:02:57.2]} 2. g3 {[%clk 0:03:01.8]}
2... Bg7 {[%clk 0:02:57.6]} 3. Bg2 {[%clk 0:03:02.4]} 3... d6 {[%clk 0:02:57.8]}
4. O-O {[%clk 0:03:02.8]} 4... e5 {[%clk 0:02:57.9]} 5. d3 {[%clk 0:02:59.9]}
5... Ne7 {[%clk 0:02:52]} 6. e4 {[%clk 0:02:56.8]} 6... O-O {[%clk 0:02:51.5]}
7. Nh4 {[%clk 0:02:54]} 7... d5 {[%clk 0:02:45.6]} 8. Nc3 {[%clk 0:02:44]} 8...
c6 {[%clk 0:02:36.2]} 9. Kh1 {[%clk 0:02:38.1]} 9... Be6 {[%clk 0:02:17.3]} 10.
f4 {[%clk 0:02:33.2]} 10... f5 {[%clk 0:02:06.3]} 11. fxe5 {[%clk 0:02:28.7]}
11... dxe4 {[%clk 0:01:51.9]} 12. dxe4 {[%clk 0:02:26.4]} 12... Qxd1 {[%clk
0:01:49.4]} 13. Rxd1 {[%clk 0:02:25.8]} 13... Bxe5 {[%clk 0:01:49.1]} 14. Bg5
{[%clk 0:02:18.7]} 14... Kf7 {[%clk 0:01:30.3]} 15. Bxe7 {[%clk 0:01:54]} 15...
Kxe7 {[%clk 0:01:29.6]} 16. exf5 {[%clk 0:01:54.4]} 16... gxf5 {[%clk
0:01:21.3]} 17. Re1 {[%clk 0:01:45.3]} 17... Kf6 {[%clk 0:01:03.2]} 18. Nf3
{[%clk 0:01:17.7]} 18... Bxc3 {[%clk 0:01:00.1]} 19. bxc3 {[%clk 0:01:16.7]}
19... Bd5 {[%clk 0:01:00.2]} 20. Nd4 {[%clk 0:01:08.1]} 20... Bxg2+ {[%clk
0:00:53.1]} 21. Kxg2 {[%clk 0:01:09]} 21... Nd7 {[%clk 0:00:53.1]} 22. Re6+
{[%clk 0:01:08.1]} 22... Kf7 {[%clk 0:00:48.4]} 23. Rf1 {[%clk 0:00:56.1]} 23...
Rae8 {[%clk 0:00:37.1]} 24. Rxf5+ {[%clk 0:00:54.8]} 24... Kg8 {[%clk
0:00:35.2]} 25. Rxf8+ {[%clk 0:00:35]} 25... Rxf8 {[%clk 0:00:33.8]} 26. Re7
{[%clk 0:00:32.3]} 26... Rf7 {[%clk 0:00:31]} 27. Re8+ {[%clk 0:00:27.1]} 27...
Kg7 {[%clk 0:00:27.9]} 28. Ne6+ {[%clk 0:00:25.2]} 28... Kf6 {[%clk 0:00:27.5]}
29. Nf4 {[%clk 0:00:22.3]} 29... Nb6 {[%clk 0:00:25.5]} 30. Re6+ {[%clk
0:00:18.2]} 30... Kg7 {[%clk 0:00:20.1]} 31. Re4 {[%clk 0:00:18.2]} 31... Nd5
{[%clk 0:00:17.9]} 32. Nxd5 {[%clk 0:00:15]} 32... cxd5 {[%clk 0:00:18.1]} 33.
Rd4 {[%clk 0:00:14.7]} 33... Rc7 {[%clk 0:00:16.4]} 34. Rxd5 {[%clk 0:00:13.4]}
34... Rxc3 {[%clk 0:00:16.6]} 35. Rd7+ {[%clk 0:00:13.9]} 35... Kg6 {[%clk
0:00:17]} 36. Rxb7 {[%clk 0:00:13.4]} 36... Rxc2+ {[%clk 0:00:17.2]} 37. Kh3
{[%clk 0:00:13.8]} 37... Rxa2 {[%clk 0:00:17.3]} 38. Kh4 {[%clk 0:00:12.7]}
38... Rxh2+ {[%clk 0:00:16.6]} 39. Kg4 {[%clk 0:00:12.9]} 39... Ra2 {[%clk
0:00:16.6]} 40. Rd7 {[%clk 0:00:11.8]} 40... Ra4+ {[%clk 0:00:15.9]} 41. Kh3
{[%clk 0:00:11.1]} 41... a5 {[%clk 0:00:15.9]} 42. Rd6+ {[%clk 0:00:11.1]} 42...
Kg5 {[%clk 0:00:15.7]} 43. Ra6 {[%clk 0:00:10.4]} 43... Ra3 {[%clk 0:00:14.9]}
44. Ra8 {[%clk 0:00:09.4]} 44... h5 {[%clk 0:00:14.8]} 45. Rg8+ {[%clk
0:00:09.5]} 45... Kf5 {[%clk 0:00:15]} 46. Kh4 {[%clk 0:00:09.5]} 46... a4
{[%clk 0:00:12.6]} 47. Rf8+ {[%clk 0:00:08.5]} 47... Ke4 {[%clk 0:00:11.9]} 48.
Ra8 {[%clk 0:00:05.8]} 48... Ra1 {[%clk 0:00:11.7]} 49. Kxh5 {[%clk 0:00:05.5]}
49... a3 {[%clk 0:00:12.1]} 50. g4 {[%clk 0:00:05.5]} 50... Kf4 {[%clk 0:00:10]}
51. g5 {[%clk 0:00:04.8]} 51... Rh1+ {[%clk 0:00:09.5]} 52. Kg6 {[%clk
0:00:04.9]} 52... Ra1 {[%clk 0:00:08.9]} 53. Ra4+ {[%clk 0:00:05.1]} 53... Ke5
{[%clk 0:00:08.1]} 54. Kg7 {[%clk 0:00:05.3]} 54... a2 {[%clk 0:00:07.8]} 55. g6
{[%clk 0:00:05.2]} 55... Ke6 {[%clk 0:00:06.2]} 56. Ra6+ {[%clk 0:00:04.3]}
56... Ke7 {[%clk 0:00:05.8]} 57. Ra7+ {[%clk 0:00:04.3]} 57... Ke6 {[%clk
0:00:06.1]} 58. Ra6+ {[%clk 0:00:04.4]} 58... Ke7 {[%clk 0:00:06.3]} 59. Ra7+
{[%clk 0:00:04.7]} 59... Ke6 {[%clk 0:00:06.7]} 60. Ra6+ {[%clk 0:00:04.7]}
1/2-1/2

[Event "*** Titled Tuesday Blitz"]
[Site "Chess.com"]
[Date "2020.11.10"]
[Round "10"]
[White "GOGIEFF"]
[Black "DenLaz"]
[Result "1-0"]
[WhiteElo "2911"]
[BlackElo "2776"]
[TimeControl "180+1"]
[EndTime "12:03:27 PST"]
[Termination "GOGIEFF won by resignation"]

1. d4 {[%clk 0:03:00.9]} 1... d5 {[%clk 0:02:59.9]} 2. c4 {[%clk 0:03:01]} 2...
c6 {[%clk 0:02:59.9]} 3. Nc3 {[%clk 0:03:01.2]} 3... Nf6 {[%clk 0:02:59.9]} 4.
cxd5 {[%clk 0:03:01.5]} 4... cxd5 {[%clk 0:03:00]} 5. Bg5 {[%clk 0:03:02.1]}
5... Ne4 {[%clk 0:02:54.4]} 6. Nxe4 {[%clk 0:03:01.9]} 6... dxe4 {[%clk
0:02:55.3]} 7. a3 {[%clk 0:03:02.3]} 7... Qd5 {[%clk 0:02:44.1]} 8. Bd2 {[%clk
0:03:01.6]} 8... Qxd4 {[%clk 0:02:27]} 9. Qc2 {[%clk 0:03:01.7]} 9... Nc6 {[%clk
0:02:26.7]} 10. e3 {[%clk 0:03:02.1]} 10... Qf6 {[%clk 0:02:22.6]} 11. Ne2
{[%clk 0:02:52.3]} 11... Bf5 {[%clk 0:02:14.2]} 12. Ng3 {[%clk 0:02:47.5]} 12...
Bg6 {[%clk 0:02:11.4]} 13. Rc1 {[%clk 0:02:34.1]} 13... e5 {[%clk 0:02:01.7]}
14. Qb3 {[%clk 0:02:29.9]} 14... Qe7 {[%clk 0:01:39.1]} 15. Bb5 {[%clk
0:02:12.2]} 15... Rc8 {[%clk 0:01:33.7]} 16. O-O {[%clk 0:02:07.2]} 16... Qe6
{[%clk 0:01:17.5]} 17. Qxe6+ {[%clk 0:01:47.4]} 17... fxe6 {[%clk 0:01:18.4]}
18. Ba4 {[%clk 0:01:37.5]} 18... Be7 {[%clk 0:01:14.9]} 19. Bc2 {[%clk
0:01:36.7]} 19... Kf7 {[%clk 0:01:15.1]} 20. Bxe4 {[%clk 0:01:36.9]} 20... Rhd8
{[%clk 0:01:12.6]} 21. Rfd1 {[%clk 0:01:36.9]} 21... Bxe4 {[%clk 0:01:04.7]} 22.
Nxe4 {[%clk 0:01:36.8]} 22... h5 {[%clk 0:01:05.2]} 23. Kf1 {[%clk 0:01:35]}
23... Kg6 {[%clk 0:01:03.8]} 24. Ke2 {[%clk 0:01:34.3]} 24... Kf5 {[%clk
0:01:03.9]} 25. f3 {[%clk 0:01:33.5]} 25... Kg6 {[%clk 0:00:59.8]} 26. Bc3
{[%clk 0:01:30.5]} 26... Kf7 {[%clk 0:00:54.6]} 27. Rxd8 {[%clk 0:01:24.1]}
27... Rxd8 {[%clk 0:00:54.2]} 28. Rd1 {[%clk 0:01:24.4]} 28... Rxd1 {[%clk
0:00:50.7]} 29. Kxd1 {[%clk 0:01:25.3]} 29... b5 {[%clk 0:00:49.1]} 30. Ke2
{[%clk 0:01:16.9]} 30... a5 {[%clk 0:00:48]} 31. Be1 {[%clk 0:01:14.7]} 31...
Ke8 {[%clk 0:00:39.3]} 32. g4 {[%clk 0:01:12.1]} 32... g6 {[%clk 0:00:36.1]} 33.
h3 {[%clk 0:01:09.5]} 33... b4 {[%clk 0:00:26.4]} 34. a4 {[%clk 0:01:06.3]}
34... Kd7 {[%clk 0:00:25.4]} 35. Kd3 {[%clk 0:01:01.5]} 35... Nd8 {[%clk
0:00:23.8]} 36. Nd2 {[%clk 0:00:48.3]} 36... Nb7 {[%clk 0:00:21.7]} 37. b3
{[%clk 0:00:47]} 37... Nc5+ {[%clk 0:00:21.2]} 38. Kc2 {[%clk 0:00:47.3]} 38...
Kc6 {[%clk 0:00:20.8]} 39. Nc4 {[%clk 0:00:47.1]} 39... e4 {[%clk 0:00:10.2]}
40. Nxa5+ {[%clk 0:00:41.7]} 40... Kd5 {[%clk 0:00:10.6]} 41. fxe4+ {[%clk
0:00:35.1]} 41... Nxe4 {[%clk 0:00:11.5]} 42. Nc4 {[%clk 0:00:31.1]} 42... hxg4
{[%clk 0:00:11.5]} 43. hxg4 {[%clk 0:00:31]} 43... g5 {[%clk 0:00:08.3]} 44. a5
{[%clk 0:00:30.4]} 44... Kc6 {[%clk 0:00:07.8]} 45. a6 {[%clk 0:00:21.6]} 45...
Nf6 {[%clk 0:00:04.7]} 46. Ne5+ {[%clk 0:00:16.1]} 46... Kb6 {[%clk 0:00:04.3]}
47. Kd3 {[%clk 0:00:14.8]} 47... Kxa6 {[%clk 0:00:04.5]} 48. Kc4 {[%clk
0:00:14.2]} 48... Nd5 {[%clk 0:00:04.9]} 49. Nc6 {[%clk 0:00:14]} 49... Bd6
{[%clk 0:00:02.7]} 50. Bxb4 {[%clk 0:00:08.3]} 50... Nxe3+ {[%clk 0:00:02.3]}
51. Kd3 {[%clk 0:00:08.3]} 51... Bxb4 {[%clk 0:00:01.7]} 52. Nxb4+ {[%clk
0:00:08.2]} 52... Kb5 {[%clk 0:00:02.6]} 53. Kxe3 {[%clk 0:00:08.7]} 53... Kxb4
{[%clk 0:00:02.9]} 54. Ke4 {[%clk 0:00:09.6]} 54... Kxb3 {[%clk 0:00:03.8]} 55.
Ke5 {[%clk 0:00:10.5]} 55... Kc4 {[%clk 0:00:04.3]} 56. Kxe6 {[%clk 0:00:11.2]}
56... Kc5 {[%clk 0:00:04.4]} 57. Kf5 {[%clk 0:00:12.1]} 57... Kd6 {[%clk
0:00:05.3]} 58. Kxg5 {[%clk 0:00:12.7]} 58... Ke7 {[%clk 0:00:06.2]} 59. Kh6
{[%clk 0:00:13]} 59... Kf8 {[%clk 0:00:07.1]} 60. g5 {[%clk 0:00:13.4]} 60...
Kg8 {[%clk 0:00:07.7]} 61. Kg6 {[%clk 0:00:13.8]} 61... Kf8 {[%clk 0:00:08.1]}
62. Kh7 {[%clk 0:00:14]} 62... Kf7 {[%clk 0:00:08.4]} 63. g6+ {[%clk 0:00:14.9]}
63... Kf6 {[%clk 0:00:08.9]} 64. g7 {[%clk 0:00:15.8]} 1-0

[Event "*** Titled Tuesday Blitz"]
[Site "Chess.com"]
[Date "2020.11.10"]
[Round "10"]
[White "Margarita2907"]
[Black "catzapto"]
[Result "0-1"]
[WhiteElo "2208"]
[BlackElo "2154"]
[TimeControl "180+1"]
[EndTime "12:03:31 PST"]
[Termination "catzapto won by resignation"]

1. e4 {[%clk 0:03:00.9]} 1... c5 {[%clk 0:02:54.1]} 2. Nf3 {[%clk 0:03:00.4]}
2... e6 {[%clk 0:02:43.7]} 3. d4 {[%clk 0:02:59.9]} 3... cxd4 {[%clk 0:02:44.6]}
4. Nxd4 {[%clk 0:03:00.4]} 4... Nf6 {[%clk 0:02:45.5]} 5. Nc3 {[%clk 0:02:59.6]}
5... Bb4 {[%clk 0:02:46.2]} 6. Bd3 {[%clk 0:02:44.8]} 6... Nc6 {[%clk 0:02:46]}
7. Nxc6 {[%clk 0:02:42]} 7... bxc6 {[%clk 0:02:46.9]} 8. O-O {[%clk 0:02:40]}
8... d5 {[%clk 0:02:47.2]} 9. e5 {[%clk 0:02:33.6]} 9... Nd7 {[%clk 0:02:47.3]}
10. f4 {[%clk 0:02:32.5]} 10... c5 {[%clk 0:02:41.4]} 11. Qg4 {[%clk 0:02:27.1]}
11... O-O {[%clk 0:02:35.7]} 12. Qh5 {[%clk 0:02:17.9]} 12... g6 {[%clk
0:02:35.8]} 13. Qh6 {[%clk 0:02:17.1]} 13... c4 {[%clk 0:02:36.1]} 14. Be2
{[%clk 0:02:17.1]} 14... Re8 {[%clk 0:02:32.9]} 15. Be3 {[%clk 0:02:09.1]} 15...
Bc5 {[%clk 0:02:14.2]} 16. Bxc5 {[%clk 0:02:04.9]} 16... Nxc5 {[%clk 0:02:14.3]}
17. Rf3 {[%clk 0:02:04.1]} 17... f5 {[%clk 0:02:08.6]} 18. Rh3 {[%clk
0:01:50.4]} 18... Qe7 {[%clk 0:02:06.4]} 19. Nb5 {[%clk 0:01:47.8]} 19... Ne4
{[%clk 0:02:00]} 20. c3 {[%clk 0:01:37.5]} 20... Qc5+ {[%clk 0:01:59.8]} 21. Nd4
{[%clk 0:01:36.9]} 21... Qe7 {[%clk 0:01:59.3]} 22. Rf1 {[%clk 0:01:33.7]} 22...
Qg7 {[%clk 0:01:55.4]} 23. Qh4 {[%clk 0:01:31.7]} 23... Bd7 {[%clk 0:01:45.7]}
24. Kh1 {[%clk 0:01:14]} 24... Qe7 {[%clk 0:01:43.5]} 25. Qe1 {[%clk 0:01:06.2]}
25... Rab8 {[%clk 0:01:42.7]} 26. Qc1 {[%clk 0:01:03.4]} 26... Rb7 {[%clk
0:01:21.2]} 27. b3 {[%clk 0:00:59.8]} 27... cxb3 {[%clk 0:01:12.4]} 28. axb3
{[%clk 0:00:59.6]} 28... Rc8 {[%clk 0:01:11.3]} 29. c4 {[%clk 0:00:52.7]} 29...
Qc5 {[%clk 0:01:04.8]} 30. Qd1 {[%clk 0:00:42.2]} 30... a5 {[%clk 0:00:59.7]}
31. Rhf3 {[%clk 0:00:35.1]} 31... Qb4 {[%clk 0:00:49.6]} 32. Nc2 {[%clk
0:00:28.2]} 32... Qd2 {[%clk 0:00:44.8]} 33. Rd3 {[%clk 0:00:23]} 33... Qxd1
{[%clk 0:00:44]} 34. Bxd1 {[%clk 0:00:23]} 34... Bc6 {[%clk 0:00:43.4]} 35. Nd4
{[%clk 0:00:19.1]} 35... dxc4 {[%clk 0:00:42.5]} 36. bxc4 {[%clk 0:00:17.3]}
36... Rb2 {[%clk 0:00:42.7]} 37. Nxc6 {[%clk 0:00:16.1]} 37... Rxc6 {[%clk
0:00:43.6]} 38. Kg1 {[%clk 0:00:14.4]} 38... Rxc4 {[%clk 0:00:41.8]} 39. Bb3
{[%clk 0:00:13.2]} 39... Rc6 {[%clk 0:00:40]} 40. Ba4 {[%clk 0:00:10.4]} 40...
Rcb6 {[%clk 0:00:38.4]} 41. Bd7 {[%clk 0:00:08.3]} 41... Kg7 {[%clk 0:00:36.2]}
42. Rc1 {[%clk 0:00:07.8]} 42... Rb1 {[%clk 0:00:35.9]} 43. Rdd1 {[%clk
0:00:05.1]} 43... Kf7 {[%clk 0:00:34.4]} 44. g3 {[%clk 0:00:04]} 44... Rxc1
{[%clk 0:00:34.2]} 45. Rxc1 {[%clk 0:00:03.8]} 45... Ke7 {[%clk 0:00:33.1]} 46.
Ra1 {[%clk 0:00:04.3]} 46... Kxd7 {[%clk 0:00:29.2]} 47. Rxa5 {[%clk 0:00:04.8]}
47... Kc6 {[%clk 0:00:28.4]} 48. Ra7 {[%clk 0:00:04.3]} 48... h5 {[%clk
0:00:28.1]} 49. Rg7 {[%clk 0:00:03.8]} 49... Kc5 {[%clk 0:00:27.1]} 50. Rxg6
{[%clk 0:00:04.3]} 50... Kd4 {[%clk 0:00:27.2]} 51. Rh6 {[%clk 0:00:04.5]} 51...
Ke3 {[%clk 0:00:27.6]} 52. Rxh5 {[%clk 0:00:04.8]} 52... Kf3 {[%clk 0:00:28.5]}
53. h4 {[%clk 0:00:03.8]} 53... Kxg3 {[%clk 0:00:23.3]} 54. Kf1 {[%clk 0:00:04]}
54... Kxf4 {[%clk 0:00:22.3]} 55. Rh8 {[%clk 0:00:02.9]} 55... Kxe5 {[%clk
0:00:22.1]} 56. h5 {[%clk 0:00:03.5]} 56... Rb2 {[%clk 0:00:21.6]} 57. h6 {[%clk
0:00:03.7]} 57... Rh2 {[%clk 0:00:21.5]} 58. h7 {[%clk 0:00:04]} 58... Nf6
{[%clk 0:00:20.6]} 59. Ra8 {[%clk 0:00:02.1]} 59... Rxh7 {[%clk 0:00:20.5]} 60.
Ra5+ {[%clk 0:00:02.6]} 60... Nd5 {[%clk 0:00:20.6]} 61. Ra4 {[%clk 0:00:02.9]}
61... Rh2 {[%clk 0:00:20.3]} 62. Ra3 {[%clk 0:00:02.8]} 62... Rb2 {[%clk
0:00:20.3]} 0-1

[Event "*** Titled Tuesday Blitz"]
[Site "Chess.com"]
[Date "2020.11.10"]
[Round "10"]
[White "Grineva_Marianna"]
[Black "RaneshRatnesan"]
[Result "0-1"]
[WhiteElo "2207"]
[BlackElo "2121"]
[TimeControl "180+1"]
[EndTime "12:03:32 PST"]
[Termination "RaneshRatnesan won by checkmate"]

1. e4 {[%clk 0:02:52.2]} 1... c5 {[%clk 0:02:59.9]} 2. Nf3 {[%clk 0:02:48.3]}
2... d6 {[%clk 0:03:00.1]} 3. d4 {[%clk 0:02:47.8]} 3... cxd4 {[%clk 0:03:01]}
4. Nxd4 {[%clk 0:02:48.4]} 4... Nf6 {[%clk 0:03:01.6]} 5. Nc3 {[%clk 0:02:47.2]}
5... a6 {[%clk 0:03:02.3]} 6. Bg5 {[%clk 0:02:46.5]} 6... e6 {[%clk 0:03:02.4]}
7. f4 {[%clk 0:02:41.7]} 7... Be7 {[%clk 0:03:02.8]} 8. Qd2 {[%clk 0:02:38.1]}
8... Qc7 {[%clk 0:03:03.1]} 9. O-O-O {[%clk 0:02:37.3]} 9... Nc6 {[%clk
0:03:03.6]} 10. h3 {[%clk 0:02:20.4]} 10... Bd7 {[%clk 0:02:59.9]} 11. Nf3
{[%clk 0:02:18.7]} 11... O-O-O {[%clk 0:02:58.5]} 12. g4 {[%clk 0:02:17.3]}
12... h6 {[%clk 0:02:58.6]} 13. Bh4 {[%clk 0:02:16.5]} 13... Kb8 {[%clk
0:02:59]} 14. Bg3 {[%clk 0:02:14.9]} 14... Qa5 {[%clk 0:02:49.6]} 15. Kb1 {[%clk
0:02:12.2]} 15... Rc8 {[%clk 0:02:45.4]} 16. Bd3 {[%clk 0:02:09.5]} 16... Rhd8
{[%clk 0:02:44.8]} 17. Rhe1 {[%clk 0:02:06.1]} 17... Ka8 {[%clk 0:02:39]} 18. g5
{[%clk 0:01:59.8]} 18... hxg5 {[%clk 0:02:26.8]} 19. fxg5 {[%clk 0:02:00.7]}
19... Nh5 {[%clk 0:02:25.3]} 20. Bf2 {[%clk 0:02:00.7]} 20... Ne5 {[%clk
0:02:15.8]} 21. Nxe5 {[%clk 0:01:55.5]} 21... dxe5 {[%clk 0:02:16.7]} 22. h4
{[%clk 0:01:29.5]} 22... Bc6 {[%clk 0:02:08.1]} 23. Nd5 {[%clk 0:01:25.5]} 23...
Qxd2 {[%clk 0:02:01.5]} 24. Nb6+ {[%clk 0:01:24.5]} 24... Kb8 {[%clk 0:02:01.2]}
25. Rxd2 {[%clk 0:01:22.9]} 25... Rc7 {[%clk 0:02:00.8]} 26. Red1 {[%clk
0:01:18.4]} 26... Nf4 {[%clk 0:01:36]} 27. a3 {[%clk 0:01:09.5]} 27... Be8
{[%clk 0:01:27.5]} 28. Bf1 {[%clk 0:01:04.2]} 28... Rxd2 {[%clk 0:01:26.9]} 29.
Rxd2 {[%clk 0:01:05.1]} 29... Bc6 {[%clk 0:01:23.6]} 30. Nc4 {[%clk 0:00:55.9]}
30... Bxe4 {[%clk 0:01:19.7]} 31. Nxe5 {[%clk 0:00:54.9]} 31... f6 {[%clk
0:01:08.3]} 32. gxf6 {[%clk 0:00:53.6]} 32... gxf6 {[%clk 0:01:09.2]} 33. Nc4
{[%clk 0:00:39]} 33... b5 {[%clk 0:01:07.5]} 34. Ne3 {[%clk 0:00:35.2]} 34... f5
{[%clk 0:01:07.6]} 35. h5 {[%clk 0:00:34.5]} 35... Bg5 {[%clk 0:01:05.8]} 36.
Bg3 {[%clk 0:00:30]} 36... Kb7 {[%clk 0:01:00.1]} 37. Rf2 {[%clk 0:00:24.9]}
37... e5 {[%clk 0:00:59.5]} 38. Nd1 {[%clk 0:00:16.9]} 38... Re7 {[%clk
0:00:54.5]} 39. Nc3 {[%clk 0:00:16.2]} 39... Nxh5 {[%clk 0:00:51.1]} 40. Nxe4
{[%clk 0:00:14.1]} 40... fxe4 {[%clk 0:00:52]} 41. Bh2 {[%clk 0:00:13.5]} 41...
e3 {[%clk 0:00:52.3]} 42. Re2 {[%clk 0:00:12.8]} 42... Bf4 {[%clk 0:00:51.1]}
43. Bg1 {[%clk 0:00:11.1]} 43... Ng3 {[%clk 0:00:50.5]} 44. Bg2+ {[%clk
0:00:10.8]} 44... Kc7 {[%clk 0:00:49.2]} 45. Re1 {[%clk 0:00:11.4]} 45... e2
{[%clk 0:00:45.8]} 46. c3 {[%clk 0:00:10.2]} 46... Rd7 {[%clk 0:00:45.9]} 47.
Kc2 {[%clk 0:00:09.8]} 47... Rd2+ {[%clk 0:00:46.5]} 48. Kb3 {[%clk 0:00:09.6]}
48... Rd1 {[%clk 0:00:46.2]} 49. Bf2 {[%clk 0:00:09.9]} 49... Bd2 {[%clk
0:00:41.1]} 50. Bxg3 {[%clk 0:00:07.4]} 50... Bxe1 {[%clk 0:00:41.5]} 51. Bxe5+
{[%clk 0:00:05.5]} 51... Kd8 {[%clk 0:00:41.5]} 52. Bf3 {[%clk 0:00:06.2]} 52...
Bh4 {[%clk 0:00:29.5]} 53. Bxe2 {[%clk 0:00:05.1]} 53... Re1 {[%clk 0:00:29.8]}
54. Bd4 {[%clk 0:00:03.3]} 54... Rxe2 {[%clk 0:00:29.9]} 55. Bb6+ {[%clk
0:00:03.1]} 55... Kc8 {[%clk 0:00:29.9]} 56. Bd4 {[%clk 0:00:02.5]} 56... Kb7
{[%clk 0:00:30.3]} 57. c4 {[%clk 0:00:02.9]} 57... bxc4+ {[%clk 0:00:29.8]} 58.
Kxc4 {[%clk 0:00:03.8]} 58... Be7 {[%clk 0:00:29.8]} 59. Bc3 {[%clk 0:00:03.8]}
59... Kc6 {[%clk 0:00:28.8]} 60. a4 {[%clk 0:00:04.1]} 60... Re4+ {[%clk
0:00:28.8]} 61. Kb3 {[%clk 0:00:04]} 61... Rh4 {[%clk 0:00:29]} 62. a5 {[%clk
0:00:04.6]} 62... Kb5 {[%clk 0:00:29]} 63. Kc2 {[%clk 0:00:04.2]} 63... Rg4
{[%clk 0:00:28.9]} 64. Kd3 {[%clk 0:00:04.7]} 64... Bc5 {[%clk 0:00:29.5]} 65.
Kc2 {[%clk 0:00:04.8]} 65... Bb4 {[%clk 0:00:29.8]} 66. Kb3 {[%clk 0:00:05.7]}
66... Bxc3 {[%clk 0:00:30.1]} 67. bxc3 {[%clk 0:00:06.2]} 67... Kxa5 {[%clk
0:00:30.6]} 68. Kc2 {[%clk 0:00:07]} 68... Kb5 {[%clk 0:00:30.9]} 69. Kb3 {[%clk
0:00:07.9]} 69... Rc4 {[%clk 0:00:31]} 70. Kc2 {[%clk 0:00:08.8]} 70... a5
{[%clk 0:00:31.8]} 71. Kb3 {[%clk 0:00:09.7]} 71... a4+ {[%clk 0:00:32.7]} 72.
Ka3 {[%clk 0:00:09.7]} 72... Rxc3+ {[%clk 0:00:33.2]} 73. Kb2 {[%clk 0:00:10.6]}
73... Kb4 {[%clk 0:00:33.7]} 74. Ka2 {[%clk 0:00:11.5]} 74... a3 {[%clk
0:00:34.2]} 75. Kb1 {[%clk 0:00:11.5]} 75... Rh3 {[%clk 0:00:34.9]} 76. Kc1
{[%clk 0:00:11.6]} 76... Kb3 {[%clk 0:00:35.4]} 77. Kd2 {[%clk 0:00:12.5]} 77...
a2 {[%clk 0:00:35.7]} 78. Kc1 {[%clk 0:00:13.4]} 78... a1=Q+ {[%clk 0:00:36.3]}
79. Kd2 {[%clk 0:00:14]} 79... Qb2+ {[%clk 0:00:37.2]} 80. Kd1 {[%clk
0:00:13.8]} 80... Rh1# {[%clk 0:00:38.1]} 0-1

[Event "*** Titled Tuesday Blitz"]
[Site "Chess.com"]
[Date "2020.11.10"]
[Round "10"]
[White "RaunakSadhwani2005"]
[Black "Parhamov"]
[Result "1-0"]
[WhiteElo "3015"]
[BlackElo "2959"]
[TimeControl "180+1"]
[EndTime "12:03:36 PST"]
[Termination "RaunakSadhwani2005 won by resignation"]

1. e4 {[%clk 0:02:56.4]} 1... c5 {[%clk 0:02:59.8]} 2. Nc3 {[%clk 0:02:55.8]}
2... Nc6 {[%clk 0:02:57.9]} 3. Bb5 {[%clk 0:02:53.9]} 3... Nd4 {[%clk
0:02:55.9]} 4. Nf3 {[%clk 0:02:52]} 4... a6 {[%clk 0:02:54.8]} 5. Bd3 {[%clk
0:02:49.7]} 5... g6 {[%clk 0:02:54.7]} 6. Nxd4 {[%clk 0:02:46.7]} 6... cxd4
{[%clk 0:02:54.4]} 7. Ne2 {[%clk 0:02:47.6]} 7... Bg7 {[%clk 0:02:54.2]} 8. c3
{[%clk 0:02:42.8]} 8... dxc3 {[%clk 0:02:03.7]} 9. dxc3 {[%clk 0:02:43.7]} 9...
d6 {[%clk 0:02:00.6]} 10. O-O {[%clk 0:02:41.9]} 10... Nf6 {[%clk 0:02:01]} 11.
c4 {[%clk 0:02:40]} 11... O-O {[%clk 0:02:00.8]} 12. Nc3 {[%clk 0:02:40.5]}
12... Bd7 {[%clk 0:02:00.6]} 13. a4 {[%clk 0:02:35]} 13... a5 {[%clk 0:01:56.3]}
14. h3 {[%clk 0:02:30.4]} 14... Bc6 {[%clk 0:01:54.9]} 15. Be3 {[%clk
0:02:27.2]} 15... Nd7 {[%clk 0:01:54.3]} 16. Qd2 {[%clk 0:02:20.5]} 16... Nc5
{[%clk 0:01:54.2]} 17. Bc2 {[%clk 0:02:20.4]} 17... Qb6 {[%clk 0:01:47.2]} 18.
Nb5 {[%clk 0:02:14.4]} 18... Bxb5 {[%clk 0:01:39.1]} 19. cxb5 {[%clk 0:02:12.8]}
19... Bxb2 {[%clk 0:01:39.1]} 20. Rab1 {[%clk 0:02:10.3]} 20... Bg7 {[%clk
0:01:38.7]} 21. f4 {[%clk 0:02:05.4]} 21... Rac8 {[%clk 0:01:37.7]} 22. g4
{[%clk 0:01:56.9]} 22... Qd8 {[%clk 0:01:32.6]} 23. f5 {[%clk 0:01:54.4]} 23...
Nd7 {[%clk 0:01:28]} 24. Bb3 {[%clk 0:01:53.5]} 24... Ne5 {[%clk 0:01:15.2]} 25.
Bg5 {[%clk 0:01:44.7]} 25... b6 {[%clk 0:00:56.1]} 26. Rf2 {[%clk 0:01:39.8]}
26... Kh8 {[%clk 0:00:19.9]} 27. Rbf1 {[%clk 0:01:39.6]} 27... Qc7 {[%clk
0:00:16.2]} 28. Kg2 {[%clk 0:01:30.8]} 28... Qc3 {[%clk 0:00:14.1]} 29. Qd1
{[%clk 0:01:22.5]} 29... Bf6 {[%clk 0:00:09.2]} 30. Bh6 {[%clk 0:01:14.6]} 30...
Bh4 {[%clk 0:00:09.5]} 31. Bxf8 {[%clk 0:01:09.8]} 31... Rxf8 {[%clk 0:00:08.6]}
32. Rf3 {[%clk 0:01:07.3]} 32... Nxf3 {[%clk 0:00:08.9]} 33. Rxf3 {[%clk
0:01:05.5]} 33... Qb2+ {[%clk 0:00:08.9]} 34. Qc2 {[%clk 0:01:00.9]} 34... Qxc2+
{[%clk 0:00:08.6]} 35. Bxc2 {[%clk 0:01:01.8]} 35... Bf6 {[%clk 0:00:08.6]} 36.
Bb3 {[%clk 0:00:59]} 36... Kg7 {[%clk 0:00:08.9]} 37. Rf2 {[%clk 0:00:56.5]}
37... Rc8 {[%clk 0:00:09]} 38. Rc2 {[%clk 0:00:56]} 38... Rc5 {[%clk 0:00:09.1]}
39. Rxc5 {[%clk 0:00:51]} 39... dxc5 {[%clk 0:00:10]} 40. Kf3 {[%clk 0:00:49.4]}
40... Be5 {[%clk 0:00:10.1]} 41. g5 {[%clk 0:00:47.8]} 41... h6 {[%clk 0:00:09]}
42. gxh6+ {[%clk 0:00:45.1]} 42... Kxh6 {[%clk 0:00:09.4]} 43. Bxf7 {[%clk
0:00:44.4]} 43... gxf5 {[%clk 0:00:08.7]} 44. exf5 {[%clk 0:00:45.3]} 44... Kg5
{[%clk 0:00:08.9]} 45. Ke4 {[%clk 0:00:42.7]} 45... Bd4 {[%clk 0:00:08.9]} 46.
Bc4 {[%clk 0:00:37.9]} 46... Bf2 {[%clk 0:00:08]} 47. Ke5 {[%clk 0:00:27.6]}
47... Bd4+ {[%clk 0:00:03]} 48. Ke6 {[%clk 0:00:21.3]} 48... Bf6 {[%clk
0:00:03.2]} 49. h4+ {[%clk 0:00:21.9]} 49... Kxh4 {[%clk 0:00:03.1]} 50. Kd5
{[%clk 0:00:22.5]} 50... Kg5 {[%clk 0:00:03.3]} 51. Kc6 {[%clk 0:00:17.4]} 51...
Kxf5 {[%clk 0:00:03.3]} 52. Kxb6 {[%clk 0:00:16.4]} 52... e5 {[%clk 0:00:02.6]}
53. Kxa5 {[%clk 0:00:14.8]} 53... e4 {[%clk 0:00:03]} 54. b6 {[%clk 0:00:12.9]}
54... e3 {[%clk 0:00:02.2]} 55. Kb5 {[%clk 0:00:11.5]} 55... Ke4 {[%clk
0:00:02]} 56. a5 {[%clk 0:00:11.8]} 56... Kd4 {[%clk 0:00:02]} 57. a6 {[%clk
0:00:12]} 57... Be5 {[%clk 0:00:02.1]} 58. a7 {[%clk 0:00:12.1]} 58... Kc3
{[%clk 0:00:03]} 59. a8=Q {[%clk 0:00:11.6]} 1-0